[Event "Early-Titled-Tuesday-Blitz-September-12-2023"]
[Site "Chess.com"]
[Date "2023.09.12"]
[Round "5"]
[White "Ishowmoves57"]
[Black "The_Princess_Moon"]
[Result "1/2-1/2"]
[WhiteElo "2110"]
[BlackElo "2262"]
[TimeControl "180+1"]
[EndTime "8:57:04 PDT"]
[Termination "Game drawn by repetition"]

1. e4 {[%clk 0:03:00.1]} 1... c5 {[%clk 0:02:58.2]} 2. Nf3 {[%clk 0:02:59]} 2...
a6 {[%clk 0:02:58]} 3. b3 {[%clk 0:02:59.4]} 3... b5 {[%clk 0:02:57.7]} 4. a4
{[%clk 0:02:56.5]} 4... Bb7 {[%clk 0:02:55.5]} 5. axb5 {[%clk 0:02:55.5]} 5...
axb5 {[%clk 0:02:56.4]} 6. Rxa8 {[%clk 0:02:55.6]} 6... Bxa8 {[%clk 0:02:56.3]}
7. Bxb5 {[%clk 0:02:55.4]} 7... Bxe4 {[%clk 0:02:56.5]} 8. Nc3 {[%clk
0:02:48.1]} 8... Bc6 {[%clk 0:02:50.1]} 9. O-O {[%clk 0:02:40.8]} 9... Nf6
{[%clk 0:02:49.1]} 10. Bxc6 {[%clk 0:02:28.3]} 10... Nxc6 {[%clk 0:02:50]} 11.
d4 {[%clk 0:02:27.1]} 11... Nxd4 {[%clk 0:02:47]} 12. Nxd4 {[%clk 0:02:28]}
12... cxd4 {[%clk 0:02:47.7]} 13. Qxd4 {[%clk 0:02:28.7]} 13... g6 {[%clk
0:02:44.8]} 14. Re1 {[%clk 0:02:00.1]} 14... Bg7 {[%clk 0:02:42.6]} 15. Nd5
{[%clk 0:01:52.3]} 15... O-O {[%clk 0:02:26.1]} 16. Nxe7+ {[%clk 0:01:37.7]}
16... Kh8 {[%clk 0:02:24.4]} 17. Nd5 {[%clk 0:01:36.4]} 17... Qa5 {[%clk
0:02:09.7]} 18. Nb4 {[%clk 0:01:09.2]} 18... Qh5 {[%clk 0:01:59.9]} 19. h3
{[%clk 0:00:49.9]} 19... d5 {[%clk 0:01:28.5]} 20. Bb2 {[%clk 0:00:25.6]} 20...
Ne8 {[%clk 0:01:24.8]} 21. Qc5 {[%clk 0:00:21.4]} 21... Kg8 {[%clk 0:01:14.7]}
22. Bxg7 {[%clk 0:00:20.4]} 22... Nxg7 {[%clk 0:01:10.9]} 23. Qxd5 {[%clk
0:00:20]} 23... Qh4 {[%clk 0:01:08.8]} 24. Qe4 {[%clk 0:00:19.5]} 24... Qd8
{[%clk 0:01:06]} 25. Nd5 {[%clk 0:00:19.6]} 25... Ne6 {[%clk 0:01:06.2]} 26. Nf4
{[%clk 0:00:17.7]} 26... Re8 {[%clk 0:00:48.6]} 27. Qf3 {[%clk 0:00:16.2]} 27...
Nd4 {[%clk 0:00:39.3]} 28. Rxe8+ {[%clk 0:00:15.8]} 28... Qxe8 {[%clk
0:00:40.2]} 29. Qe3 {[%clk 0:00:13.9]} 29... Qd8 {[%clk 0:00:25.5]} 30. Qd3
{[%clk 0:00:12.5]} 30... Qb6 {[%clk 0:00:22.1]} 31. c3 {[%clk 0:00:10.9]} 31...
Nxb3 {[%clk 0:00:21.8]} 32. Nd5 {[%clk 0:00:09.7]} 32... Qb7 {[%clk 0:00:20.5]}
33. Qc4 {[%clk 0:00:09.5]} 33... Nd2 {[%clk 0:00:19.6]} 34. Qd4 {[%clk
0:00:08.6]} 34... Qb1+ {[%clk 0:00:18.2]} 35. Kh2 {[%clk 0:00:08.5]} 35... Nf1+
{[%clk 0:00:18.6]} 36. Kg1 {[%clk 0:00:08.6]} 36... Ne3+ {[%clk 0:00:18.2]} 37.
Kh2 {[%clk 0:00:09.2]} 37... Nf1+ {[%clk 0:00:18.2]} 38. Kg1 {[%clk 0:00:09.7]}
38... Nd2+ {[%clk 0:00:14.9]} 39. Kh2 {[%clk 0:00:09.7]} 39... Ne4 {[%clk
0:00:15.8]} 40. Qe3 {[%clk 0:00:09.2]} 40... Nd6 {[%clk 0:00:14.8]} 41. Ne7+
{[%clk 0:00:09.3]} 41... Kf8 {[%clk 0:00:14.6]} 42. Nd5 {[%clk 0:00:09.7]} 42...
Nf5 {[%clk 0:00:14.8]} 43. Qf3 {[%clk 0:00:09]} 43... Qb3 {[%clk 0:00:13.9]} 44.
Ne3 {[%clk 0:00:09.1]} 44... Nxe3 {[%clk 0:00:13.8]} 45. Qxe3 {[%clk 0:00:09.4]}
45... h5 {[%clk 0:00:14.4]} 46. Qd4 {[%clk 0:00:09.9]} 46... Qb8+ {[%clk
0:00:14.3]} 47. g3 {[%clk 0:00:09.4]} 47... Qb2 {[%clk 0:00:13.9]} 48. Qh8+
{[%clk 0:00:09.1]} 48... Ke7 {[%clk 0:00:14.4]} 49. Qe5+ {[%clk 0:00:09.8]}
49... Kf8 {[%clk 0:00:14.6]} 50. Qe3 {[%clk 0:00:10.7]} 50... Qb3 {[%clk
0:00:14.6]} 51. Qd4 {[%clk 0:00:10.1]} 51... Qc2 {[%clk 0:00:15]} 52. Qe3 {[%clk
0:00:09.9]} 52... h4 {[%clk 0:00:15.3]} 53. Kg2 {[%clk 0:00:10.1]} 53... hxg3
{[%clk 0:00:15.4]} 54. Qxg3 {[%clk 0:00:10.2]} 54... Qd2 {[%clk 0:00:15.4]} 55.
Qe3 {[%clk 0:00:10.3]} 55... Qc2 {[%clk 0:00:15.7]} 56. h4 {[%clk 0:00:09.5]}
56... Kg7 {[%clk 0:00:16]} 57. Qe5+ {[%clk 0:00:09.3]} 57... Kf8 {[%clk
0:00:16]} 58. Qh8+ {[%clk 0:00:09]} 58... Ke7 {[%clk 0:00:16.3]} 59. Qe5+ {[%clk
0:00:09.9]} 59... Kd7 {[%clk 0:00:16.7]} 60. Qd4+ {[%clk 0:00:10.7]} 60... Ke7
{[%clk 0:00:17.2]} 61. Qe3+ {[%clk 0:00:10.8]} 61... Kf8 {[%clk 0:00:17.5]} 62.
Kg3 {[%clk 0:00:11.4]} 62... Qf5 {[%clk 0:00:17.7]} 63. Qf4 {[%clk 0:00:11.4]}
63... Qd3+ {[%clk 0:00:17.9]} 64. Qe3 {[%clk 0:00:11.8]} 64... Qd6+ {[%clk
0:00:18.1]} 65. Kg2 {[%clk 0:00:11.8]} 65... Qc6+ {[%clk 0:00:18.6]} 66. Qf3
{[%clk 0:00:12]} 66... Qc5 {[%clk 0:00:18.6]} 67. Qe3 {[%clk 0:00:12.2]} 67...
Qc4 {[%clk 0:00:18.6]} 68. Qd4 {[%clk 0:00:12.5]} 68... Qe2 {[%clk 0:00:18.5]}
69. Qh8+ {[%clk 0:00:12.4]} 69... Ke7 {[%clk 0:00:18.6]} 70. Qd4 {[%clk
0:00:12.8]} 70... Kf8 {[%clk 0:00:18.9]} 71. Qd8+ {[%clk 0:00:12.8]} 71... Kg7
{[%clk 0:00:19.1]} 72. Qd4+ {[%clk 0:00:13.2]} 72... Kh7 {[%clk 0:00:19.5]} 73.
Qe3 {[%clk 0:00:13.5]} 73... Qc2 {[%clk 0:00:18.7]} 74. Kg3 {[%clk 0:00:12.6]}
74... Kg7 {[%clk 0:00:18.1]} 75. Qf3 {[%clk 0:00:13]} 75... Kg8 {[%clk
0:00:17.1]} 76. Qf6 {[%clk 0:00:12.5]} 76... Qb2 {[%clk 0:00:16.7]} 77. Qd8+
{[%clk 0:00:12]} 77... Kg7 {[%clk 0:00:16.5]} 78. Qd3 {[%clk 0:00:11.9]} 78...
Qb8+ {[%clk 0:00:15.9]} 79. Kg2 {[%clk 0:00:12.3]} 79... Qb7+ {[%clk 0:00:15.9]}
80. Qf3 {[%clk 0:00:12.8]} 80... Qc7 {[%clk 0:00:15.3]} 81. Qg3 {[%clk
0:00:12.6]} 81... Qc4 {[%clk 0:00:15]} 82. Kh2 {[%clk 0:00:12.6]} 82... Kh7
{[%clk 0:00:15]} 83. Kg2 {[%clk 0:00:11.6]} 83... Qd5+ {[%clk 0:00:14.6]} 84.
Kh2 {[%clk 0:00:11.5]} 84... Qc4 {[%clk 0:00:14.9]} 85. Kh3 {[%clk 0:00:10.6]}
85... Qe6+ {[%clk 0:00:14.8]} 86. Kg2 {[%clk 0:00:10.9]} 86... Qe4+ {[%clk
0:00:14.8]} 87. Qf3 {[%clk 0:00:10.7]} 87... Qc4 {[%clk 0:00:15.7]} 88. Qg3
{[%clk 0:00:10.1]} 88... Kg7 {[%clk 0:00:15.6]} 89. Qe3 {[%clk 0:00:09.8]} 89...
Qxh4 {[%clk 0:00:15.6]} 90. Qg3 {[%clk 0:00:09.7]} 90... Qe4+ {[%clk 0:00:15.7]}
91. Qf3 {[%clk 0:00:09.3]} 91... Qc4 {[%clk 0:00:16.6]} 92. Qg3 {[%clk
0:00:09.6]} 92... Kh7 {[%clk 0:00:15.8]} 93. Qh3+ {[%clk 0:00:09.5]} 93... Kg7
{[%clk 0:00:16]} 94. Qg3 {[%clk 0:00:10.4]} 94... Qd5+ {[%clk 0:00:16.1]} 95.
Qf3 {[%clk 0:00:10.4]} 95... Qc4 {[%clk 0:00:16]} 96. Qg3 {[%clk 0:00:10.8]}
1/2-1/2

[Event "Early-Titled-Tuesday-Blitz-September-12-2023"]
[Site "Chess.com"]
[Date "2023.09.12"]
[Round "5"]
[White "splendidkid"]
[Black "Bugcrusher"]
[Result "1-0"]
[WhiteElo "2758"]
[BlackElo "2465"]
[TimeControl "180+1"]
[EndTime "8:57:47 PDT"]
[Termination "splendidkid won by resignation"]

1. d4 {[%clk 0:02:56.4]} 1... e6 {[%clk 0:02:59.5]} 2. c4 {[%clk 0:02:56.3]}
2... Nf6 {[%clk 0:02:59]} 3. Nf3 {[%clk 0:02:56.1]} 3... Nc6 {[%clk 0:02:57.6]}
4. g3 {[%clk 0:02:45.8]} 4... d5 {[%clk 0:02:55.2]} 5. Nbd2 {[%clk 0:02:37.4]}
5... Bb4 {[%clk 0:02:46.2]} 6. Qc2 {[%clk 0:01:59.7]} 6... Ne4 {[%clk
0:02:13.5]} 7. Bg2 {[%clk 0:01:56.3]} 7... Bxd2+ {[%clk 0:02:11.8]} 8. Bxd2
{[%clk 0:01:53.8]} 8... Nxd2 {[%clk 0:02:10.1]} 9. Qxd2 {[%clk 0:01:54.3]} 9...
dxc4 {[%clk 0:02:09.7]} 10. O-O {[%clk 0:01:54.4]} 10... O-O {[%clk 0:02:07.4]}
11. Rac1 {[%clk 0:01:53.9]} 11... e5 {[%clk 0:01:48]} 12. d5 {[%clk 0:01:37.7]}
12... e4 {[%clk 0:01:47.8]} 13. Ng5 {[%clk 0:01:23.1]} 13... f5 {[%clk
0:01:31.8]} 14. Rxc4 {[%clk 0:01:05.6]} 14... Ne5 {[%clk 0:01:31.2]} 15. Rc2
{[%clk 0:01:05.9]} 15... c6 {[%clk 0:01:12.2]} 16. Rd1 {[%clk 0:00:56]} 16...
cxd5 {[%clk 0:00:53.7]} 17. Rc5 {[%clk 0:00:44.5]} 17... h6 {[%clk 0:00:42.5]}
18. Rxd5 {[%clk 0:00:22.1]} 18... Qxg5 {[%clk 0:00:41.2]} 19. Rxe5 {[%clk
0:00:18.2]} 19... Qxd2 {[%clk 0:00:38.3]} 20. Rxd2 {[%clk 0:00:19.1]} 20... b6
{[%clk 0:00:33.3]} 21. f3 {[%clk 0:00:19.2]} 21... exf3 {[%clk 0:00:30.3]} 22.
Bxf3 {[%clk 0:00:20.1]} 22... Rb8 {[%clk 0:00:29.2]} 23. b4 {[%clk 0:00:18.9]}
23... Bb7 {[%clk 0:00:26.2]} 24. Rd7 {[%clk 0:00:16.2]} 24... Bxf3 {[%clk
0:00:25.6]} 25. exf3 {[%clk 0:00:17.1]} 25... Rf7 {[%clk 0:00:26.2]} 26. Rxf7
{[%clk 0:00:14.2]} 26... Kxf7 {[%clk 0:00:26.3]} 27. Rxf5+ {[%clk 0:00:15.1]}
27... Ke6 {[%clk 0:00:26.6]} 28. Rf4 {[%clk 0:00:14.7]} 28... Rc8 {[%clk
0:00:23.5]} 29. Re4+ {[%clk 0:00:14.6]} 29... Kf6 {[%clk 0:00:18.1]} 30. Kf2
{[%clk 0:00:12.1]} 30... Rc2+ {[%clk 0:00:17.8]} 31. Re2 {[%clk 0:00:11.9]}
31... Rc1 {[%clk 0:00:18.2]} 32. g4 {[%clk 0:00:09.9]} 32... g5 {[%clk 0:00:17]}
33. Kg3 {[%clk 0:00:04.2]} 33... Rg1+ {[%clk 0:00:16.6]} 34. Kf2 {[%clk
0:00:04.6]} 34... Rc1 {[%clk 0:00:16.1]} 35. a3 {[%clk 0:00:03.8]} 35... a5
{[%clk 0:00:14.4]} 36. bxa5 {[%clk 0:00:03.1]} 36... bxa5 {[%clk 0:00:14.6]} 37.
Re4 {[%clk 0:00:03.8]} 37... Rc2+ {[%clk 0:00:13.4]} 38. Kg3 {[%clk 0:00:04]}
38... Rc5 {[%clk 0:00:10.5]} 39. h4 {[%clk 0:00:02.8]} 39... Kg6 {[%clk
0:00:07.6]} 40. Rd4 {[%clk 0:00:02.5]} 40... Rb5 {[%clk 0:00:06.9]} 41. Rd6+
{[%clk 0:00:02.5]} 41... Kg7 {[%clk 0:00:07.2]} 42. Ra6 {[%clk 0:00:02.8]} 42...
Rc5 {[%clk 0:00:06.3]} 43. hxg5 {[%clk 0:00:02.7]} 43... hxg5 {[%clk 0:00:06.1]}
44. a4 {[%clk 0:00:03.1]} 44... Rd5 {[%clk 0:00:06]} 45. Kf2 {[%clk 0:00:03.3]}
45... Rc5 {[%clk 0:00:06.1]} 46. Ke3 {[%clk 0:00:03.8]} 46... Rd5 {[%clk
0:00:06.2]} 47. Ke4 {[%clk 0:00:04]} 47... Rc5 {[%clk 0:00:06.4]} 48. Kd4 {[%clk
0:00:04.4]} 48... Rc1 {[%clk 0:00:03.8]} 49. Rxa5 {[%clk 0:00:04.7]} 49... Kg6
{[%clk 0:00:03.7]} 50. Ra6+ {[%clk 0:00:05.3]} 50... Kg7 {[%clk 0:00:03.9]} 51.
Ke4 {[%clk 0:00:05.2]} 51... Rc4+ {[%clk 0:00:03.6]} 52. Ke3 {[%clk 0:00:04.4]}
52... Rc3+ {[%clk 0:00:03.9]} 53. Kf2 {[%clk 0:00:04.9]} 53... Rc2+ {[%clk
0:00:04.5]} 54. Kg3 {[%clk 0:00:05.2]} 54... Ra2 {[%clk 0:00:05.3]} 55. a5
{[%clk 0:00:05.2]} 55... Ra3 {[%clk 0:00:05.8]} 56. Ra8 {[%clk 0:00:05.4]} 56...
Kg6 {[%clk 0:00:05.7]} 57. Kf2 {[%clk 0:00:05.3]} 57... Kg7 {[%clk 0:00:05.3]}
58. a6 {[%clk 0:00:05.1]} 58... Kg6 {[%clk 0:00:05.2]} 59. a7 {[%clk 0:00:05.4]}
59... Kg7 {[%clk 0:00:05.5]} 60. Ke2 {[%clk 0:00:06.1]} 60... Ra2+ {[%clk
0:00:04.2]} 61. Kd3 {[%clk 0:00:06.1]} 61... Ra3+ {[%clk 0:00:04.8]} 62. Ke4
{[%clk 0:00:06.5]} 62... Ra4+ {[%clk 0:00:05.3]} 63. Ke5 {[%clk 0:00:06.6]}
63... Ra5+ {[%clk 0:00:05.8]} 64. Kd6 {[%clk 0:00:04.9]} 64... Ra6+ {[%clk
0:00:05.9]} 65. Kd5 {[%clk 0:00:04.2]} 65... Ra5+ {[%clk 0:00:06.3]} 66. Kd4
{[%clk 0:00:04]} 66... Ra4+ {[%clk 0:00:06.7]} 67. Kc3 {[%clk 0:00:03]} 67...
Ra3+ {[%clk 0:00:06.8]} 68. Kb4 {[%clk 0:00:03.5]} 68... Ra1 {[%clk 0:00:07.1]}
69. Kb5 {[%clk 0:00:03]} 69... Rb1+ {[%clk 0:00:07.2]} 70. Kc5 {[%clk
0:00:03.6]} 70... Ra1 {[%clk 0:00:06.9]} 71. Kb4 {[%clk 0:00:04.1]} 71... Rb1+
{[%clk 0:00:07.1]} 72. Kc4 {[%clk 0:00:04.8]} 72... Ra1 {[%clk 0:00:07.3]} 73.
Kd4 {[%clk 0:00:05.1]} 73... Ra4+ {[%clk 0:00:07.2]} 74. Ke3 {[%clk 0:00:05.6]}
74... Ra3+ {[%clk 0:00:07.6]} 75. Kf2 {[%clk 0:00:06]} 75... Ra2+ {[%clk
0:00:08.2]} 76. Kg1 {[%clk 0:00:05.3]} 76... Ra1+ {[%clk 0:00:08.6]} 77. Kg2
{[%clk 0:00:05.4]} 77... Ra2+ {[%clk 0:00:09.1]} 78. Kh3 {[%clk 0:00:05.8]}
78... Ra3 {[%clk 0:00:09.2]} 79. Kg3 {[%clk 0:00:06.2]} 79... Ra2 {[%clk
0:00:09]} 80. Rc8 {[%clk 0:00:02.8]} 80... Rxa7 {[%clk 0:00:08.5]} 81. Rc6
{[%clk 0:00:03.4]} 81... Ra3 {[%clk 0:00:07.1]} 82. Kf2 {[%clk 0:00:03.3]} 82...
Ra2+ {[%clk 0:00:07.5]} 83. Ke3 {[%clk 0:00:03.5]} 83... Ra3+ {[%clk 0:00:08]}
84. Ke4 {[%clk 0:00:04]} 84... Ra4+ {[%clk 0:00:07.9]} 85. Kd3 {[%clk
0:00:04.5]} 85... Ra3+ {[%clk 0:00:08.2]} 86. Ke4 {[%clk 0:00:04.8]} 86... Ra4+
{[%clk 0:00:08.5]} 87. Ke5 {[%clk 0:00:04.4]} 87... Ra5+ {[%clk 0:00:08.4]} 88.
Ke6 {[%clk 0:00:03.4]} 88... Ra3 {[%clk 0:00:08.4]} 89. Kf5 {[%clk 0:00:03.1]}
89... Ra5+ {[%clk 0:00:08.3]} 90. Ke6 {[%clk 0:00:03.2]} 90... Ra3 {[%clk
0:00:08.3]} 91. Rc5 {[%clk 0:00:03.4]} 91... Rxf3 {[%clk 0:00:07.7]} 92. Rxg5+
{[%clk 0:00:03.6]} 92... Kf8 {[%clk 0:00:07.9]} 93. Rf5+ {[%clk 0:00:02.5]}
93... Rxf5 {[%clk 0:00:07.9]} 94. gxf5 {[%clk 0:00:02.8]} 94... Ke8 {[%clk
0:00:07.9]} 95. f6 {[%clk 0:00:03.3]} 95... Kf8 {[%clk 0:00:06]} 96. f7 {[%clk
0:00:03.9]} 1-0

[Event "Early-Titled-Tuesday-Blitz-September-12-2023"]
[Site "Chess.com"]
[Date "2023.09.12"]
[Round "6"]
[White "Jojo_898"]
[Black "HanSchut"]
[Result "0-1"]
[WhiteElo "2348"]
[BlackElo "2264"]
[TimeControl "180+1"]
[EndTime "8:59:31 PDT"]
[Termination "HanSchut won by resignation"]

1. e4 {[%clk 0:03:00.9]} 1... c5 {[%clk 0:03:00.1]} 2. Nf3 {[%clk 0:03:00.7]}
2... d6 {[%clk 0:03:00.7]} 3. c3 {[%clk 0:02:59.8]} 3... Nf6 {[%clk 0:03:00.7]}
4. Bd3 {[%clk 0:02:59.5]} 4... e6 {[%clk 0:03:00.8]} 5. O-O {[%clk 0:02:58.6]}
5... Nc6 {[%clk 0:03:00]} 6. Bc2 {[%clk 0:02:58.6]} 6... Be7 {[%clk 0:02:59.6]}
7. d4 {[%clk 0:02:58.9]} 7... cxd4 {[%clk 0:03:00.5]} 8. cxd4 {[%clk 0:02:59.4]}
8... d5 {[%clk 0:03:01.1]} 9. e5 {[%clk 0:02:59]} 9... Ne4 {[%clk 0:03:01.4]}
10. Nc3 {[%clk 0:02:56.6]} 10... Nxc3 {[%clk 0:03:01.3]} 11. b3 {[%clk 0:02:57]}
11... Nxd1 {[%clk 0:03:01]} 0-1

[Event "Early-Titled-Tuesday-Blitz-September-12-2023"]
[Site "Chess.com"]
[Date "2023.09.12"]
[Round "6"]
[White "glebus008"]
[Black "BeautiFullMindChess"]
[Result "0-1"]
[WhiteElo "2292"]
[BlackElo "2189"]
[TimeControl "180+1"]
[EndTime "9:01:18 PDT"]
[Termination "BeautiFullMindChess won by resignation"]

1. Nf3 {[%clk 0:03:00.9]} 1... d5 {[%clk 0:02:56.7]} 2. c4 {[%clk 0:02:59.6]}
2... Nf6 {[%clk 0:02:57.6]} 3. cxd5 {[%clk 0:02:52]} 3... Nxd5 {[%clk 0:02:57]}
4. e4 {[%clk 0:02:51.2]} 4... Nb4 {[%clk 0:02:56.3]} 5. d4 {[%clk 0:02:49.4]}
5... c5 {[%clk 0:02:55.1]} 6. a3 {[%clk 0:02:48.5]} 6... N4c6 {[%clk 0:02:53.8]}
7. d5 {[%clk 0:02:48.9]} 7... Nd4 {[%clk 0:02:51.7]} 8. Nxd4 {[%clk 0:02:48.4]}
8... cxd4 {[%clk 0:02:52.6]} 9. Qxd4 {[%clk 0:02:48.7]} 9... e5 {[%clk 0:02:51]}
10. Qxe5+ {[%clk 0:02:47.8]} 10... Be7 {[%clk 0:02:47.1]} 11. Bb5+ {[%clk
0:02:36.9]} 11... Nd7 {[%clk 0:02:42.6]} 12. Nc3 {[%clk 0:02:29.8]} 12... O-O
{[%clk 0:02:41.7]} 13. O-O {[%clk 0:02:27.8]} 13... Nxe5 {[%clk 0:02:41.4]} 0-1

[Event "Early-Titled-Tuesday-Blitz-September-12-2023"]
[Site "Chess.com"]
[Date "2023.09.12"]
[Round "6"]
[White "Ready4abattle"]
[Black "CixPer1968"]
[Result "0-1"]
[WhiteElo "2315"]
[BlackElo "2198"]
[TimeControl "180+1"]
[EndTime "9:02:06 PDT"]
[Termination "CixPer1968 won by resignation"]

1. e4 {[%clk 0:03:00.9]} 1... c5 {[%clk 0:02:45.2]} 2. Nf3 {[%clk 0:02:46]} 2...
d6 {[%clk 0:02:44.7]} 3. d4 {[%clk 0:02:46.3]} 3... cxd4 {[%clk 0:02:44.7]} 4.
Nxd4 {[%clk 0:02:47.2]} 4... Nf6 {[%clk 0:02:44.7]} 5. Nc3 {[%clk 0:02:47.8]}
5... g6 {[%clk 0:02:43.9]} 6. Be3 {[%clk 0:02:47.4]} 6... Bg7 {[%clk 0:02:43.9]}
7. f3 {[%clk 0:02:48.1]} 7... O-O {[%clk 0:02:43.8]} 8. Qd2 {[%clk 0:02:47.8]}
8... Nc6 {[%clk 0:02:44.3]} 9. O-O-O {[%clk 0:02:47.8]} 9... d5 {[%clk
0:02:44.3]} 10. Qe1 {[%clk 0:02:46]} 10... e5 {[%clk 0:02:38]} 11. Nxc6 {[%clk
0:02:45.9]} 11... bxc6 {[%clk 0:02:36]} 12. exd5 {[%clk 0:02:46.8]} 12... Nxd5
{[%clk 0:02:33.7]} 13. Bc4 {[%clk 0:02:46.3]} 13... Be6 {[%clk 0:02:28.6]} 14.
Kb1 {[%clk 0:02:46.4]} 14... Qc7 {[%clk 0:01:57.4]} 15. Ne4 {[%clk 0:02:42]}
15... Nxe3 {[%clk 0:01:51.9]} 16. Bxe6 {[%clk 0:02:22.3]} 16... Nxd1 {[%clk
0:01:50.3]} 17. Bb3 {[%clk 0:02:22.9]} 17... Nxb2 {[%clk 0:01:34.4]} 18. Kxb2
{[%clk 0:02:21.7]} 18... Kh8 {[%clk 0:01:34.3]} 19. Qe2 {[%clk 0:02:15.8]} 19...
f5 {[%clk 0:01:33.7]} 20. Nc5 {[%clk 0:02:14.6]} 20... e4+ {[%clk 0:01:31.8]}
21. Kb1 {[%clk 0:02:15]} 21... Qe5 {[%clk 0:01:31.2]} 0-1

[Event "Early-Titled-Tuesday-Blitz-September-12-2023"]
[Site "Chess.com"]
[Date "2023.09.12"]
[Round "6"]
[White "AliKa2810"]
[Black "Anton_Demchenko"]
[Result "0-1"]
[WhiteElo "2574"]
[BlackElo "2938"]
[TimeControl "180+1"]
[EndTime "9:02:08 PDT"]
[Termination "Anton_Demchenko won by resignation"]

1. d4 {[%clk 0:02:53.1]} 1... Nf6 {[%clk 0:02:57.1]} 2. c4 {[%clk 0:02:53.4]}
2... d6 {[%clk 0:02:57.4]} 3. Nf3 {[%clk 0:02:51.7]} 3... Nc6 {[%clk 0:02:57.8]}
4. Nc3 {[%clk 0:02:51.2]} 4... e5 {[%clk 0:02:58.1]} 5. d5 {[%clk 0:02:47.8]}
5... Ne7 {[%clk 0:02:58]} 6. e4 {[%clk 0:02:47.9]} 6... Ng6 {[%clk 0:02:58.7]}
7. h3 {[%clk 0:02:47.3]} 7... Be7 {[%clk 0:02:59.5]} 8. Be3 {[%clk 0:02:47.4]}
8... O-O {[%clk 0:02:58.5]} 9. g3 {[%clk 0:02:42.7]} 9... h6 {[%clk 0:02:56.3]}
10. Bg2 {[%clk 0:02:35.1]} 10... Nh7 {[%clk 0:02:55.9]} 11. h4 {[%clk
0:02:33.6]} 11... f5 {[%clk 0:02:53.4]} 12. h5 {[%clk 0:02:25.4]} 12... Nh8
{[%clk 0:02:53.9]} 13. exf5 {[%clk 0:02:24.5]} 13... Bxf5 {[%clk 0:02:54.8]} 14.
Nh4 {[%clk 0:02:16]} 14... Bxh4 {[%clk 0:02:39.4]} 15. Rxh4 {[%clk 0:02:16.9]}
15... Nf7 {[%clk 0:02:36.6]} 16. Qe2 {[%clk 0:02:04.2]} 16... a6 {[%clk
0:02:33.7]} 17. O-O-O {[%clk 0:02:00.9]} 17... b5 {[%clk 0:02:33.1]} 18. c5
{[%clk 0:02:01]} 18... Nf6 {[%clk 0:02:26.9]} 19. Bh3 {[%clk 0:01:45]} 19...
Bxh3 {[%clk 0:02:23.8]} 20. Rxh3 {[%clk 0:01:45.9]} 20... b4 {[%clk 0:02:24.3]}
21. Na4 {[%clk 0:01:38.3]} 21... Qd7 {[%clk 0:02:23.8]} 22. g4 {[%clk
0:01:29.5]} 22... Qxa4 {[%clk 0:02:23.4]} 23. Kb1 {[%clk 0:01:29.8]} 23... b3
{[%clk 0:02:22.2]} 24. a3 {[%clk 0:01:29.6]} 24... Qxg4 {[%clk 0:02:20.6]} 0-1

[Event "Early-Titled-Tuesday-Blitz-September-12-2023"]
[Site "Chess.com"]
[Date "2023.09.12"]
[Round "6"]
[White "Rurep26"]
[Black "GamayevOleg"]
[Result "1-0"]
[WhiteElo "2786"]
[BlackElo "2465"]
[TimeControl "180+1"]
[EndTime "9:02:16 PDT"]
[Termination "Rurep26 won by resignation"]

1. d4 {[%clk 0:03:00.9]} 1... e6 {[%clk 0:03:00.1]} 2. Bf4 {[%clk 0:02:59.9]}
2... f5 {[%clk 0:02:58.5]} 3. e3 {[%clk 0:02:57.1]} 3... Nf6 {[%clk 0:02:58.7]}
4. Nd2 {[%clk 0:02:58]} 4... Be7 {[%clk 0:02:55.5]} 5. h3 {[%clk 0:02:57.4]}
5... d6 {[%clk 0:02:55.8]} 6. Ngf3 {[%clk 0:02:57.6]} 6... O-O {[%clk
0:02:56.1]} 7. Bc4 {[%clk 0:02:56.6]} 7... h6 {[%clk 0:02:43.4]} 8. O-O {[%clk
0:02:56.1]} 8... Kh7 {[%clk 0:02:42.3]} 9. Qe2 {[%clk 0:02:54.6]} 9... Nc6
{[%clk 0:02:42.1]} 10. Bh2 {[%clk 0:02:45.3]} 10... Bd7 {[%clk 0:02:41]} 11. e4
{[%clk 0:02:44.9]} 11... fxe4 {[%clk 0:02:40.2]} 12. Nxe4 {[%clk 0:02:45.8]}
12... Nd5 {[%clk 0:02:23.9]} 13. Bd3 {[%clk 0:02:36.4]} 13... Kh8 {[%clk
0:02:22.7]} 14. c3 {[%clk 0:02:34.5]} 14... Nf4 {[%clk 0:02:22.1]} 15. Bxf4
{[%clk 0:02:33.8]} 15... Rxf4 {[%clk 0:02:23]} 16. Ng3 {[%clk 0:02:34.6]} 16...
Qf8 {[%clk 0:02:17.8]} 17. Nh5 {[%clk 0:02:33.8]} 17... Rxf3 {[%clk 0:02:12.4]}
18. gxf3 {[%clk 0:02:30]} 18... e5 {[%clk 0:02:12.2]} 19. Qe4 {[%clk 0:02:29.5]}
19... Qg8 {[%clk 0:02:07.9]} 20. d5 {[%clk 0:02:21.5]} 20... Nd8 {[%clk
0:02:06.7]} 21. Kh2 {[%clk 0:02:11.8]} 21... Nf7 {[%clk 0:02:06.7]} 22. f4
{[%clk 0:02:05.3]} 22... exf4 {[%clk 0:02:02]} 23. Nxf4 {[%clk 0:02:04.5]} 23...
Ne5 {[%clk 0:02:00.5]} 24. Qxe5 {[%clk 0:01:55.8]} 24... dxe5 {[%clk 0:02:00.6]}
25. Ng6+ {[%clk 0:01:56.7]} 25... Kh7 {[%clk 0:02:00.9]} 26. Nxe7+ {[%clk
0:01:57]} 26... Kh8 {[%clk 0:02:01.5]} 27. Nxg8 {[%clk 0:01:56.4]} 27... Kxg8
{[%clk 0:02:00.8]} 28. Rae1 {[%clk 0:01:54.9]} 1-0

[Event "Early-Titled-Tuesday-Blitz-September-12-2023"]
[Site "Chess.com"]
[Date "2023.09.12"]
[Round "6"]
[White "Oleksandr_Bortnyk"]
[Black "wqws"]
[Result "1-0"]
[WhiteElo "3009"]
[BlackElo "2687"]
[TimeControl "180+1"]
[EndTime "9:02:36 PDT"]
[Termination "Oleksandr_Bortnyk won by resignation"]

1. e4 {[%clk 0:03:00.9]} 1... c5 {[%clk 0:02:59.1]} 2. c3 {[%clk 0:03:00.4]}
2... Nf6 {[%clk 0:02:56.7]} 3. e5 {[%clk 0:03:00.9]} 3... Nd5 {[%clk 0:02:56.9]}
4. d4 {[%clk 0:03:01.8]} 4... cxd4 {[%clk 0:02:56]} 5. Nf3 {[%clk 0:03:02.7]}
5... Nc6 {[%clk 0:02:54]} 6. cxd4 {[%clk 0:03:03.6]} 6... d6 {[%clk 0:02:53.7]}
7. Bc4 {[%clk 0:03:04.4]} 7... Nb6 {[%clk 0:02:53.8]} 8. Bb5 {[%clk 0:03:04.8]}
8... d5 {[%clk 0:02:47.6]} 9. O-O {[%clk 0:03:05]} 9... e6 {[%clk 0:02:47.3]}
10. Nc3 {[%clk 0:03:05.1]} 10... Bd7 {[%clk 0:02:45.9]} 11. a3 {[%clk
0:03:04.2]} 11... Be7 {[%clk 0:02:46.1]} 12. Bd3 {[%clk 0:03:04.9]} 12... O-O
{[%clk 0:02:45.8]} 13. h4 {[%clk 0:03:05.3]} 13... f5 {[%clk 0:02:25]} 14. g3
{[%clk 0:03:04.9]} 14... Be8 {[%clk 0:02:22.6]} 15. Be2 {[%clk 0:03:04.8]} 15...
Bh5 {[%clk 0:02:20.7]} 16. Kg2 {[%clk 0:03:04.9]} 16... Rc8 {[%clk 0:02:14.3]}
17. Ng5 {[%clk 0:03:05.1]} 17... Bxe2 {[%clk 0:02:13]} 18. Nxe2 {[%clk 0:03:06]}
18... Qd7 {[%clk 0:02:06.3]} 19. Nf4 {[%clk 0:03:06.4]} 19... Bxg5 {[%clk
0:01:58.2]} 20. hxg5 {[%clk 0:03:07.3]} 20... g6 {[%clk 0:01:50.5]} 21. Rh1
{[%clk 0:03:08]} 21... Rf7 {[%clk 0:01:49.7]} 22. b3 {[%clk 0:03:08.5]} 22...
Re8 {[%clk 0:01:40.4]} 23. Be3 {[%clk 0:03:09]} 23... Qd8 {[%clk 0:01:28]} 24.
Rh6 {[%clk 0:03:09.3]} 24... Qxg5 {[%clk 0:01:17.5]} 25. Nxe6 {[%clk 0:03:08.9]}
25... Qg4 {[%clk 0:00:33.8]} 26. f3 {[%clk 0:03:09]} 1-0